bitfinex/quotes_SOLUSD_20240615
["timestamp","ask_amount","ask_price","bid_price","bid_amount"]
[1718414379700,2.5771,143.57,143.55,25.7736]
[1718414379906,29.8496,143.58,143.56,2.5772]
[1718414380306,10.3087,143.57,143.52,4.08]
[1718414380618,2.5774,143.55,143.54,2.5776]
[1718414380802,2.5774,143.56,143.54,7.7329]
[1718414381420,15.464,143.56,143.54,2.5776]
[1718414381923,7.732,143.56,143.54,7.7329]
[1718414382622,15.4639,143.56,143.54,2.5776]
[1718414382797,7.732,143.56,143.54,2.5776]
[1718414383833,2.5774,143.56,143.54,7.7329]
[1718414384008,6.6574,143.56,143.54,7.7329]
[1718414384209,6.6574,143.56,143.54,15.4659]
[1718414384534,25.772,143.57,143.55,2.5774]
[1718414384847,6.6573,143.56,143.55,2.5774]
[1718414385006,2.5773,143.56,143.54,25.7764]
[1718414385523,29.8522,143.57,143.55,2.5774]
[1718414386330,11.8114,143.57,143.55,7.7323]
[1718414386510,2.5772,143.57,143.56,2.5773]
[1718414386705,29.8501,143.58,143.56,2.5773]
[1718414387022,11.8112,143.58,143.56,2.5773]
[1718414387331,2.5771,143.57,143.55,7.7322]
[1718414388729,7.7297,143.61,143.51,0.8555192]
[1718414388935,22.1148,143.61,143.55,4.08]
[1718414389114,2.5766,143.6,143.58,7.7306]
[1718414389310,2.5767,143.59,143.57,23.1929]
[1718414389631,11.8099,143.6,143.58,2.5769]
[1718414389805,2.5767,143.6,143.58,7.7308]
[1718414390009,2.5767,143.6,143.58,2.5769]
[1718414390219,7.7299,143.6,143.58,2.5769]
[1718414390406,2.5768,143.59,143.57,7.731]
[1718414391046,7.7303,143.59,143.57,2.577]
[1718414391338,2.5768,143.59,143.57,7.7312]
[1718414391523,2.5768,143.59,143.57,2.577]
[1718414392016,7.7304,143.59,143.57,2.577]
[1718414392216,7.73,143.6,143.58,2.5769]
[1718414392425,2.5767,143.59,143.57,7.731]
[1718414393032,25.7662,143.6,143.58,2.5769]
[1718414393223,7.73,143.6,143.58,2.5769]
[1718414393630,7.7299,143.6,143.58,2.5769]
[1718414393826,7.7299,143.6,143.57,23.1939]
[1718414393827,2.5768,143.59,143.57,7.731]
[1718414394538,2.5768,143.59,143.57,2.577]
[1718414396340,7.7303,143.59,143.57,2.577]
[1718414397224,7.7303,143.59,143.55,5.1549]
[1718414397225,4.08,143.59,143.55,5.1549]
[1718414397419,2.5771,143.57,143.55,7.7322]
[1718414397629,15.4627,143.57,143.55,2.5773]
[1718414397833,7.7313,143.57,143.55,2.5773]
[1718414398130,7.7314,143.57,143.55,2.5773]
[1718414399025,2.5771,143.57,143.55,2.5773]
[1718414399225,2.5771,143.57,143.55,7.7322]
[1718414400141,29.8502,143.58,143.56,2.5773]
[1718414400440,19.5391,143.61,143.58,15.4612]
[1718414400626,15.4811,143.63,143.56,4.08]
[1718414400823,2.5765,143.61,143.58,18.038]
[1718414401036,2.5766,143.6,143.58,20.6148]
[1718414401214,2.5768,143.59,143.57,7.731]
[1718414402348,2.5768,143.59,143.57,15.4624]
[1718414402723,2.5768,143.59,143.57,7.731]
[1718414404222,25.7664,143.6,143.58,2.5769]
[1718414405152,2.5767,143.59,143.57,25.7709]
[1718414405334,2.5767,143.59,143.57,7.731]
[1718414405533,7.7308,143.58,143.56,2.5771]
[1718414405737,15.4618,143.58,143.56,2.5772]
[1718414406041,15.4619,143.58,143.56,2.5772]
[1718414406638,2.5771,143.58,143.56,7.7318]
[1718414408246,2.5771,143.57,143.55,25.7733]
[1718414408547,2.577,143.58,143.56,7.7318]
[1718414409121,7.7309,143.58,143.56,2.5772]
[1718414409343,2.5771,143.57,143.55,7.732]
[1718414410026,7.7309,143.58,143.56,7.7318]
[1718414410240,2.5767,143.59,143.57,25.7705]
[1718414410542,2.5769,143.58,143.56,25.7722]
[1718414410853,7.7306,143.59,143.57,2.5771]
[1718414411150,25.768,143.59,143.57,2.5771]
[1718414411333,2.5769,143.58,143.56,25.7722]
[1718414412061,2.5771,143.57,143.55,25.7741]
[1718414412360,2.5771,143.57,143.55,18.0419]
[1718414412728,5.1551,143.55,143.51,6.0119192]
[1718414412930,2.5779,143.53,143.51,8.5897192]
[1718414413129,2.5778,143.53,143.51,8.5898192]
[1718414413458,7.7332,143.54,143.52,2.578]
[1718414413641,2.5777,143.54,143.52,15.4681]
[1718414414242,2.5777,143.54,143.52,7.734]
[1718414415230,100.0,143.56,143.51,0.8555192]
[1718414415429,29.8602,143.52,143.51,0.8555192]
[1718414415652,25.7802,143.52,143.51,0.8555192]
[1718414415863,11.814,143.52,143.51,0.8555192]
[1718414416040,19.5481,143.52,143.51,0.8555192]
[1718414416382,7.734,143.52,143.51,0.8555192]
[1718414416671,29.8602,143.52,143.51,0.8555192]
[1718414417764,19.5481,143.52,143.51,0.8555192]
[1718414418053,11.814,143.52,143.51,0.8555192]
[1718414418356,29.8602,143.52,143.51,0.8555192]
[1718414418775,7.734,143.52,143.51,0.8555192]
[1718414419058,2.578,143.52,143.51,0.8555192]
[1718414419355,7.734,143.52,143.51,0.8555192]
[1718414419562,25.7802,143.52,143.51,0.8555192]
[1718414419942,29.8602,143.52,143.51,0.8555192]
[1718414422237,30.0302,143.52,143.51,0.8555192]
[1718414422455,30.5402,143.52,143.51,0.8555192]
[1718414426375,2.5786,143.49,143.47,2.5789]
[1718414426569,12.893,143.49,143.47,2.5789]
[1718414426803,2.5787,143.48,143.46,7.7369]
[1718414426957,2.5787,143.48,143.46,2.5789]
[1718414427146,2.5787,143.48,143.46,7.7371]
[1718414427475,29.866,143.49,143.47,2.5789]
[1718414427676,29.866,143.49,143.46,12.8955]
[1718414427677,27.2873,143.49,143.46,12.8955]
[1718414427889,27.2873,143.49,143.46,15.4744]
[1718414428060,29.866,143.49,143.46,12.8955]
[1718414428361,29.866,143.49,143.46,15.4744]
[1718414428564,7.7359,143.49,143.47,2.5789]
[1718414428869,2.5787,143.49,143.47,2.5789]
[1718414429076,7.7343,143.52,143.48,7.7359]
[1718414429288,2.5781,143.52,143.5,7.735]
[1718414429569,2.5782,143.51,143.49,25.7848]
[1718414429774,2.5782,143.51,143.49,7.7353]
[1718414429942,25.7804,143.52,143.5,2.5783]
[1718414430147,5.1561,143.52,143.49,23.2067]
[1718414430363,7.7342,143.52,143.5,2.5783]
[1718414430583,5.1555,143.54,143.46,6.1455]
[1718414430788,16.166,143.57,143.52,7.734]
[1718414431086,7.7331,143.54,143.52,2.578]
[1718414431288,2.5777,143.54,143.52,7.734]
[1718414431676,2.5778,143.53,143.51,25.7812]
[1718414431874,25.7768,143.54,143.52,2.578]
[1718414432295,2.5778,143.53,143.51,25.7812]
[1718414432590,2.5777,143.54,143.52,7.7339]
[1718414432768,27.2779,143.55,143.53,2.5778]
[1718414432769,7.7327,143.55,143.53,2.5778]
[1718414433483,2.5776,143.55,143.53,7.7335]
[1718414433668,25.7721,143.57,143.55,2.5774]
[1718414433872,25.7721,143.57,143.54,5.1552]
[1718414433873,23.1949,143.57,143.54,5.1552]
[1718414434076,7.7316,143.57,143.55,2.5774]
[1718414434382,5.1546,143.56,143.53,27.2798]
[1718414434585,5.1546,143.56,143.53,2.5777]
[1718414434586,7.7325,143.55,143.53,2.5777]
[1718414434788,2.5775,143.55,143.53,7.7333]
[1718414435175,2.5774,143.56,143.54,7.7328]
[1718414435378,2.5774,143.56,143.54,15.4658]
[1718414435687,7.7326,143.55,143.53,2.5777]
[1718414436393,7.7326,143.55,143.51,4.08]
[1718414436394,10.3115,143.53,143.48,15.2065]
[1718414436565,7.7338,143.53,143.51,2.5781]
[1718414436894,7.7338,143.53,143.51,7.7345]
[1718414437469,7.7333,143.54,143.52,2.578]
[1718414438092,2.5778,143.53,143.51,7.7344]
[1718414438885,7.7335,143.53,143.51,2.578]
[1718414439193,29.8589,143.53,143.51,2.5782]
[1718414439371,2.578,143.52,143.5,7.7347]
[1718414439567,29.8588,143.53,143.5,12.8916]
[1718414439763,2.578,143.52,143.5,25.7833]
[1718414440065,2.578,143.52,143.5,18.0482]
[1718414440265,6.6579,143.53,143.51,7.7345]
[1718414440693,11.8136,143.53,143.51,2.5782]
[1718414440895,2.578,143.52,143.5,25.7833]
[1718414441303,19.5472,143.53,143.51,2.5782]
[1718414441831,6.6579,143.53,143.51,7.7345]
[1718414442486,11.8133,143.54,143.52,2.578]
[1718414442682,6.6578,143.54,143.52,7.734]
[1718414442990,16.166,143.6,143.55,2.5774]
[1718414443191,5.1539,143.58,143.54,7.7328]
[1718414443494,25.7698,143.58,143.56,2.5772]
[1718414443795,2.5771,143.57,143.55,7.7321]
[1718414443977,2.5771,143.57,143.55,15.4645]
[1718414444482,16.166,143.6,143.49,0.17]
[1718414444689,2.5768,143.59,143.57,7.7312]
[1718414444990,16.4883,143.64,143.57,4.08]
[1718414445164,2.5762,143.62,143.6,7.7295]
[1718414445369,27.265,143.63,143.61,2.5763]
[1718414445370,7.7283,143.63,143.61,2.5763]
[1718414445592,16.4883,143.64,143.58,4.08]
[1718414445903,2.5757,143.65,143.63,2.5759]
[1718414446091,7.7271,143.65,143.63,2.5759]
[1718414446409,2.5758,143.64,143.62,25.7616]
[1718414446794,2.5761,143.63,143.61,2.5763]
[1718414447179,7.7282,143.63,143.61,2.5763]
[1718414447388,2.5762,143.62,143.6,7.7293]
[1718414447580,7.7282,143.63,143.6,23.1889]
[1718414447789,2.5762,143.62,143.6,7.7293]
[1718414448918,15.4558,143.64,143.62,2.5762]
[1718414449089,5.152,143.64,143.61,12.8819]
[1718414449292,7.7282,143.63,143.61,2.5763]
[1718414449494,2.5759,143.64,143.62,2.5762]
[1718414449800,7.7276,143.64,143.62,2.5762]
[1718414450002,2.576,143.63,143.61,7.7289]
[1718414450402,7.7281,143.63,143.61,2.5762]
[1718414450603,2.576,143.63,143.61,2.5762]
[1718414450812,2.576,143.63,143.61,7.729]
[1718414451114,2.576,143.63,143.61,2.5762]
[1718414451115,7.7281,143.63,143.61,2.5762]
[1718414451282,0.17,143.66,143.59,2.5767]
[1718414451483,7.7293,143.61,143.59,2.5767]
[1718414452011,2.5764,143.61,143.59,7.7301]
[1718414452210,2.5764,143.61,143.59,2.5766]
[1718414452399,100.0,143.64,143.57,5.154]
[1718414452602,7.7299,143.6,143.58,2.5769]
[1718414452986,15.4597,143.6,143.58,2.5769]
[1718414453213,7.7299,143.6,143.58,2.5769]
[1718414454092,2.5767,143.6,143.58,7.7307]
[1718414454296,16.4883,143.62,143.55,10.3093]
[1718414454617,25.767,143.6,143.57,15.4623]
[1718414454799,2.5768,143.59,143.57,7.731]
[1718414455515,2.5769,143.58,143.56,2.5771]
[1718414456431,15.4617,143.58,143.56,2.5773]
[1718414456586,7.7308,143.58,143.56,2.5773]
[1718414456793,15.4616,143.58,143.55,25.774]
[1718414456986,12.8847,143.58,143.56,2.5773]
[1718414457192,2.5769,143.58,143.56,15.4637]
[1718414457591,2.5769,143.58,143.56,7.7318]
[1718414458215,7.7309,143.58,143.56,2.5772]
[1718414458388,2.5771,143.57,143.55,25.7738]
[1718414458585,23.1913,143.59,143.56,12.8864]
[1718414458790,18.0377,143.59,143.56,23.1956]
[1718414459014,7.7305,143.59,143.57,2.5771]
[1718414460509,2.5763,143.62,143.6,2.5765]
[1718414460727,7.7289,143.62,143.6,2.5765]
[1718414461023,15.4598,143.6,143.58,2.5769]
[1718414461194,2.5768,143.59,143.57,2.577]
[1718414461397,7.7303,143.59,143.57,2.577]
[1718414461836,2.5768,143.59,143.57,2.577]
[1718414462017,7.7303,143.59,143.57,2.577]
[1718414462327,12.8858,143.57,143.54,15.4655]
[1718414462494,7.7316,143.57,143.55,2.5774]
[1718414462699,2.5772,143.57,143.55,7.7323]
[1718414463021,25.7685,143.59,143.56,15.4633]
[1718414463226,7.7306,143.59,143.57,2.5771]
[1718414463519,2.5769,143.59,143.57,2.5771]
[1718414463926,7.7305,143.59,143.57,2.5771]
[1718414464103,15.4608,143.59,143.56,25.7725]
[1718414464301,2.5769,143.58,143.56,25.7725]
[1718414464495,2.5769,143.58,143.56,7.7315]
[1718414464926,7.7304,143.59,143.57,2.5771]
[1718414465331,2.577,143.58,143.56,7.7315]
[1718414465511,7.73,143.6,143.58,2.5769]
[1718414465701,15.4598,143.6,143.57,25.7706]
[1718414465924,15.4598,143.6,143.58,2.5769]
[1718414466106,2.5767,143.59,143.57,7.731]
[1718414466310,7.7303,143.59,143.57,2.577]
[1718414466536,2.5767,143.59,143.57,7.7312]
[1718414466836,7.7301,143.6,143.58,2.5769]
[1718414467726,2.5767,143.59,143.57,25.7708]
[1718414467914,7.7302,143.59,143.57,2.577]
[1718414468219,2.5767,143.59,143.57,7.7312]
[1718414468629,7.7302,143.59,143.57,2.577]
[1718414469537,15.4605,143.59,143.57,2.577]
[1718414469729,12.8838,143.59,143.56,12.886]
[1718414469904,12.8858,143.57,143.54,23.1981]
[1718414470227,7.7316,143.57,143.55,2.5774]
[1718414470840,4.08,143.56,143.51,21.7062]
[1718414471139,2.5773,143.56,143.54,7.7327]
[1718414471641,15.4639,143.56,143.54,2.5775]
[1718414471823,7.732,143.56,143.54,2.5775]
[1718414472406,2.5773,143.56,143.54,7.7327]
[1718414472822,29.852,143.57,143.54,15.4657]
[1718414473017,2.5773,143.56,143.54,7.7327]
[1718414473621,2.5773,143.56,143.54,2.5775]
[1718414473921,15.4619,143.58,143.56,2.5772]
[1718414474129,4.08,143.57,143.56,2.5772]
[1718414474321,12.8844,143.59,143.55,23.1967]
[1718414474522,23.1914,143.59,143.56,23.1955]
[1718414474825,4.08,143.58,143.57,2.5771]
[1718414475328,19.5411,143.59,143.57,2.5771]
[1718414475512,15.4611,143.59,143.57,2.5771]
[1718414475723,2.5769,143.58,143.56,7.7316]
[1718414475921,2.5769,143.58,143.56,15.4635]
[1718414476435,2.5769,143.58,143.56,7.7316]
[1718414476638,7.7308,143.58,143.56,2.5771]
[1718414477639,15.4617,143.58,143.56,2.5771]
[1718414478337,2.5771,143.57,143.55,25.7736]
[1718414478511,7.7313,143.57,143.55,7.732]
[1718414478712,2.5773,143.56,143.54,7.7326]
[1718414479433,29.8516,143.57,143.55,2.5774]
[1718414479837,11.8114,143.57,143.55,2.5774]
[1718414480333,5.1547,143.56,143.53,23.2]
[1718414480540,15.4641,143.56,143.54,2.5776]
[1718414480845,2.5774,143.55,143.53,25.7777]
[1718414481026,19.5441,143.56,143.54,2.5776]
[1718414481734,6.6574,143.56,143.54,7.7329]
[1718414482927,4.08,143.56,143.54,5.1553]
[1718414483120,6.6573,143.56,143.54,7.7328]
[1718414483320,11.8119,143.56,143.54,7.7328]
[1718414483651,11.8126,143.55,143.53,2.5777]
[1718414484217,6.6575,143.55,143.53,7.7334]
[1718414484418,4.08,143.55,143.53,15.4669]
[1718414485145,6.6575,143.55,143.53,15.4669]
[1718414485435,4.08,143.54,143.53,2.5778]
[1718414485639,4.08,143.54,143.52,15.468]
[1718414485640,4.08,143.54,143.52,25.7797]
[1718414485843,6.6577,143.54,143.52,7.7338]
[1718414486546,4.08,143.54,143.53,2.5778]
[1718414486732,2.5776,143.55,143.53,7.7335]
[1718414486926,7.7322,143.56,143.54,2.5776]
[1718414487129,4.08,143.55,143.54,2.5776]
[1718414487544,4.08,143.55,143.53,25.7782]
[1718414487747,7.7322,143.56,143.54,2.5776]
[1718414487917,7.7322,143.56,143.54,7.7329]
[1718414487918,2.5774,143.56,143.54,7.7329]
[1718414488118,6.6571,143.57,143.55,7.7321]
[1718414488341,4.08,143.57,143.55,15.4645]
[1718414488637,11.8114,143.57,143.55,2.5773]
[1718414488831,2.5773,143.56,143.54,7.7326]
[1718414489032,11.8127,143.55,143.53,2.5778]
[1718414489723,7.733,143.54,143.52,2.5779]
[1718414489923,19.546,143.54,143.51,25.7811]
[1718414490123,19.546,143.54,143.52,2.578]
[1718414490551,19.546,143.54,143.51,25.7811]
[1718414490740,19.5461,143.54,143.51,25.7811]
[1718414490941,11.8131,143.54,143.52,2.578]
[1718414491951,6.6578,143.54,143.52,7.734]
[1718414492930,2.5778,143.53,143.51,25.7811]
[1718414493119,6.6578,143.53,143.51,2.578]
[1718414493549,6.6578,143.53,143.51,7.7344]
[1718414493747,15.4685,143.52,143.49,23.2065]
[1718414493939,4.08,143.52,143.51,2.5782]
[1718414494265,16.9702,143.52,143.5,2.5783]
[1718414494423,4.08,143.51,143.49,23.2064]
[1718414494619,4.08,143.51,143.5,2.5783]
[1718414495249,4.08,143.52,143.51,2.5782]
[1718414495742,4.08,143.52,143.5,25.7835]
[1718414496252,4.08,143.52,143.51,2.5782]
[1718414497432,4.08,143.52,143.5,25.7835]
[1718414497622,7.7333,143.54,143.52,2.5779]
[1718414497821,4.08,143.53,143.52,2.5779]
[1718414498042,11.8133,143.54,143.52,2.5779]
[1718414498237,23.1707,143.55,143.52,23.2019]
[1718414498452,27.2507,143.55,143.53,2.5778]
[1718414498657,22.0956,143.55,143.53,2.5778]
[1718414498856,27.2506,143.55,143.53,2.5778]
[1718414499361,2.5777,143.54,143.52,7.7337]
[1718414500236,2.5777,143.54,143.52,2.5778]
[1718414500438,2.5777,143.54,143.52,7.7338]
[1718414500643,7.7317,143.57,143.55,2.5774]
[1718414500841,7.7325,143.55,143.53,2.5777]
[1718414501355,15.465,143.55,143.52,25.7788]
[1718414501660,7.7325,143.55,143.53,2.5778]
[1718414502033,2.5775,143.55,143.53,2.5778]
[1718414502541,2.5774,143.56,143.54,7.7328]
[1718414502751,23.1949,143.57,143.54,15.4658]
[1718414502952,27.2749,143.57,143.54,15.4658]
[1718414503151,2.5773,143.56,143.54,15.4658]
[1718414503348,2.5773,143.56,143.54,7.7328]
[1718414503859,29.8521,143.57,143.54,15.4658]
[1718414504040,2.5773,143.56,143.54,15.4657]
[1718414504557,2.5771,143.57,143.55,7.7322]
[1718414504773,25.7699,143.58,143.55,15.4646]
[1718414504931,2.5771,143.57,143.55,7.7322]
[1718414505442,7.7314,143.57,143.55,2.5773]
[1718414505950,15.4628,143.57,143.54,25.7753]
[1718414506263,2.5773,143.56,143.54,7.7326]
[1718414506439,2.5773,143.56,143.53,25.7775]
[1718414506440,2.5774,143.55,143.53,25.7775]
[1718414507068,2.5774,143.55,143.53,18.0443]
[1718414507238,23.196,143.56,143.5,10.3131]
[1718414507239,4.08,143.56,143.5,10.3131]
[1718414507438,2.5779,143.53,143.51,7.7343]
[1718414507749,7.7337,143.53,143.51,2.5781]
[1718414508057,2.5779,143.53,143.51,7.7344]
[1718414508561,2.578,143.52,143.5,2.5782]
[1718414508760,2.578,143.52,143.5,7.7349]
[1718414508948,6.658,143.52,143.5,7.7349]
[1718414509146,2.578,143.53,143.51,7.7346]
[1718414509331,2.578,143.53,143.51,15.4692]
[1718414509851,2.578,143.53,143.51,7.7346]
[1718414510865,27.2799,143.54,143.51,12.8909]
[1718414511366,2.5779,143.53,143.51,7.7345]
[1718414511541,2.5777,143.54,143.52,2.5779]
[1718414511737,2.5776,143.55,143.53,7.7334]
[1718414511963,23.1947,143.57,143.54,5.1553]
[1718414512262,2.5774,143.56,143.54,15.4658]
[1718414512850,2.5774,143.56,143.54,7.7328]
[1718414513051,15.463,143.57,143.55,2.5774]
[1718414513366,2.5773,143.56,143.54,25.7759]
[1718414513967,2.5773,143.56,143.54,7.7327]
[1718414514268,15.9345,143.6,143.5,15.8375]
[1718414514269,7.733,143.54,143.5,15.8375]
[1718414514457,2.578,143.52,143.5,25.7829]
[1718414514658,25.7786,143.53,143.51,2.5781]
[1718414515164,2.578,143.52,143.5,25.7829]
[1718414515461,2.578,143.52,143.5,7.7346]
[1718414516264,25.7787,143.53,143.51,2.5781]
[1718414516763,2.5779,143.53,143.51,15.469]
[1718414516949,2.5779,143.53,143.52,2.578]
[1718414517280,2.5779,143.53,143.51,15.4689]
[1718414517281,2.5778,143.53,143.51,15.4689]
[1718414517469,25.7775,143.54,143.52,2.578]
[1718414520343,2.5778,143.53,143.52,2.578]
[1718414520545,2.5778,143.53,143.51,7.7343]
[1718414520741,7.7335,143.53,143.51,7.7343]
[1718414520985,2.5778,143.53,143.51,7.7343]
[1718414521154,2.5778,143.53,143.52,2.578]
[1718414521344,2.5778,143.53,143.51,15.4689]
[1718414521549,0.17,143.59,143.48,0.17]
[1718414521743,2.5773,143.56,143.54,2.5775]
[1718414521963,2.5773,143.56,143.54,7.7328]
[1718414522245,7.7324,143.55,143.53,2.5777]
[1718414522470,2.5774,143.55,143.53,7.7333]
[1718414522842,2.5774,143.55,143.54,2.5776]
[1718414523046,25.7736,143.56,143.54,2.5776]
[1718414523547,10.3093,143.56,143.54,2.5776]
[1718414523768,15.4641,143.56,143.54,2.5776]
[1718414523967,2.5775,143.55,143.53,7.7332]
[1718414524151,25.7738,143.56,143.54,2.5776]
[1718414524353,7.7322,143.56,143.54,2.5776]
[1718414524564,7.7322,143.56,143.54,7.7329]
[1718414524957,33.971,143.6,143.57,5.1542]
[1718414525248,2.5769,143.58,143.56,2.5771]
[1718414525451,2.5769,143.58,143.57,2.5771]
[1718414525673,2.5769,143.58,143.56,15.4636]
[1718414525868,2.5769,143.58,143.56,7.7317]
[1718414526051,2.5771,143.57,143.56,2.5771]
[1718414526250,2.5771,143.57,143.55,25.7737]
[1718414526451,25.7697,143.58,143.56,2.5773]
[1718414526870,15.4619,143.58,143.56,2.5773]
[1718414527149,2.5771,143.58,143.56,2.5773]
[1718414527350,2.5771,143.58,143.56,7.7317]
[1718414527560,2.5771,143.58,143.55,18.0416]
[1718414527561,2.5767,143.6,143.58,5.1537]
[1718414527771,2.5767,143.6,143.58,15.4613]
[1718414527956,25.7651,143.61,143.59,2.5767]
[1718414528156,2.5766,143.6,143.59,2.5767]
[1718414528360,2.5766,143.6,143.58,25.7691]
[1718414528772,2.5766,143.6,143.58,7.7305]
[1718414530071,2.5765,143.61,143.59,7.7301]
[1718414530978,7.7293,143.61,143.59,2.5766]
[1718414531460,2.5766,143.6,143.59,2.5766]
[1718414531901,2.5766,143.6,143.58,25.7689]
[1718414532080,2.5757,143.65,143.63,2.5759]
[1718414532287,18.4623,143.67,143.59,0.34]
[1718414532473,7.7261,143.67,143.65,2.5755]
[1718414532659,6.6322,143.69,143.64,2.5758]
[1718414532660,25.7556,143.66,143.64,2.5758]
[1718414532860,2.5756,143.66,143.64,7.7275]
[1718414533165,2.5755,143.66,143.64,25.7578]
[1718414533375,2.5755,143.66,143.64,15.4546]
[1718414533567,23.177,143.68,143.65,12.8782]
[1718414533773,23.177,143.68,143.66,2.5754]
[1718414533774,7.7258,143.68,143.66,2.5754]
[1718414533967,10.2993,143.7,143.66,23.179]
[1718414534183,2.5752,143.68,143.66,7.7263]
[1718414534497,2.5752,143.68,143.66,2.5754]
[1718414535061,7.7255,143.68,143.66,2.5754]
[1718414535273,15.4501,143.69,143.66,5.151]
[1718414535482,7.7251,143.69,143.67,2.5752]
[1718414535695,7.7256,143.68,143.66,2.5754]
[1718414535861,2.5752,143.68,143.66,2.5754]
[1718414536185,2.5752,143.68,143.65,23.1806]
[1718414536186,7.7255,143.68,143.65,23.1806]
[1718414536400,7.7255,143.68,143.65,2.5756]
[1718414536401,7.726,143.67,143.65,2.5756]
[1718414536767,2.5755,143.66,143.64,25.7578]
[1718414537078,2.5755,143.66,143.64,7.7272]
[1718414537262,25.7535,143.67,143.65,2.5757]
[1718414537765,2.5753,143.67,143.65,15.4538]
[1718414537964,25.7523,143.68,143.66,2.5755]
[1718414538461,7.7258,143.68,143.66,2.5755]
[1718414538668,2.5753,143.68,143.66,2.5755]
[1718414538878,7.7257,143.68,143.66,2.5755]
[1718414539268,2.5753,143.67,143.65,25.7564]
[1718414539465,2.5756,143.66,143.64,7.7274]
[1718414539668,7.7266,143.66,143.64,2.5758]
[1718414540575,7.7266,143.66,143.64,7.7275]
[1718414540885,2.5756,143.66,143.64,25.7585]
[1718414541474,2.5759,143.64,143.62,23.1854]
[1718414541679,15.4554,143.64,143.62,7.7284]
[1718414541907,25.7589,143.64,143.62,7.7284]
[1718414542079,2.5761,143.63,143.62,2.5762]
[1718414542393,7.7278,143.64,143.62,15.4573]
[1718414542595,2.576,143.64,143.63,2.576]
[1718414543196,25.7579,143.65,143.63,2.576]
[1718414543997,2.5758,143.65,143.64,2.5758]
[1718414544197,25.7561,143.66,143.64,7.7275]
[1718414544988,7.7268,143.66,143.64,15.4551]
[1718414545303,7.7263,143.67,143.65,15.4541]
[1718414545607,25.7525,143.68,143.66,2.5755]
[1718414545798,2.5753,143.67,143.65,25.7567]
[1718414545989,23.1772,143.68,143.66,2.5754]
[1718414546180,2.5753,143.67,143.66,2.5754]
[1718414546381,2.5753,143.67,143.65,25.7567]
[1718414546604,5.1505,143.68,143.65,23.1812]
[1718414546793,6.3394,143.7,143.67,23.1778]
[1718414546794,29.5133,143.7,143.67,23.1778]
[1718414546982,2.575,143.69,143.67,18.0271]
[1718414547186,2.5751,143.68,143.66,25.7541]
[1718414547396,7.7254,143.68,143.66,2.5753]
[1718414547789,2.5751,143.68,143.66,7.7262]
[1718414548302,7.7254,143.68,143.66,2.5753]
[1718414548685,7.7254,143.68,143.66,7.7263]
[1718414548885,2.5751,143.68,143.66,7.7263]
[1718414549593,7.7254,143.68,143.66,7.7263]
[1718414549793,2.5753,143.67,143.65,25.7559]
[1718414550092,23.1785,143.67,143.64,5.1516]
[1718414550295,25.7539,143.67,143.65,2.5756]
[1718414550675,2.5755,143.66,143.64,18.0307]
[1718414550891,2.5759,143.64,143.61,5.1525]
[1718414551106,5.1512,143.66,143.63,15.4562]
[1718414551313,2.5757,143.65,143.63,7.7279]
[1718414551512,2.5756,143.66,143.64,7.7275]